fUSD/lending_fUSD_20250331
["ID","MTS","AMOUNT","RATE_DAILY","PERIOD"]
[356922506,1743433899749,-512.99131765,0.00049862,120]
[356922507,1743433899758,-500.0,0.00049862,120]
[356922508,1743433899768,-500.0,0.00049862,120]
[356922509,1743433899778,-500.0,0.00049862,120]
[356922510,1743433899787,-500.0,0.00049862,120]
[356922511,1743433899797,-524.83698853,0.00049862,120]
[356922512,1743433899809,-500.0,0.00049862,120]
[356922513,1743433899818,-500.0,0.00049862,120]
[356922514,1743433899828,-500.0,0.00049862,120]
[356922515,1743433899838,-591.82788009,0.00049862,120]
[356922516,1743433899848,-500.0,0.00049862,120]
[356922517,1743433899857,-745.34,0.00049862,120]
[356922518,1743433899867,-500.0,0.00049862,120]
[356922519,1743433899877,-500.0,0.00049862,120]
[356922520,1743433899886,-750.0,0.00049862,120]
[356922521,1743433899896,-500.0,0.00049862,120]
[356922522,1743433899906,-500.0,0.00049862,120]
[356922523,1743433899917,-500.0,0.00049862,120]
[356922524,1743433899928,-500.0,0.00049862,120]
[356922525,1743433899937,-500.0,0.00049862,120]
[356922526,1743433899947,-500.0,0.00049862,120]
[356922527,1743433899956,-500.0,0.00049862,120]
[356922528,1743433899966,-500.0,0.00049862,120]
[356922529,1743433899976,-500.0,0.00049862,120]
[356922530,1743433899985,-436.20098018,0.00049862,120]
[356922531,1743433899995,-578.46094169,0.00049862,120]
[356922532,1743433900005,-500.0,0.00049862,120]
[356922533,1743433900015,-558.62356593,0.00049862,120]
[356922534,1743433900025,-500.0,0.00049862,120]
[356922535,1743433900035,-500.0,0.00049862,120]
[356922536,1743433900047,-500.0,0.00049862,120]
[356922537,1743433900059,-500.0,0.00049862,120]
[356922538,1743433900069,-507.13724042,0.00049862,120]
[356922539,1743433900079,-500.0,0.00049862,120]
[356922540,1743433900089,-610.70779193,0.00049862,120]
[356922541,1743433900099,-500.0,0.00049862,120]
[356922542,1743433900109,-512.14898465,0.00049862,120]
[356922543,1743433900119,-500.0,0.00049862,120]
[356922544,1743433900129,-500.0,0.00049862,120]
[356922545,1743433900139,-500.0,0.00049862,120]
[356922546,1743433900148,-498.38535275,0.00049862,120]
[356922547,1743433900160,-593.78983853,0.00049862,120]
[356922548,1743433900170,-500.0,0.00049862,120]
[356922549,1743433900179,-500.0,0.00049862,120]
[356922550,1743433900188,-500.0,0.00049862,120]
[356922551,1743433900198,-500.0,0.00049862,120]
[356922552,1743433900209,-500.0,0.00049862,120]
[356922553,1743433900220,-847.49,0.00049862,120]
[356922554,1743433900231,-567.15241414,0.00049862,120]
[356922555,1743433900243,-500.0,0.00049862,120]
[356922556,1743433900255,-500.0,0.00049862,120]
[356922557,1743433900265,-853.55,0.00049862,120]
[356922558,1743433900275,-681.0,0.00049862,120]
[356922559,1743433900284,-500.0,0.00049862,120]
[356922560,1743433900294,-500.0,0.00049862,120]
[356922561,1743433900304,-500.0,0.00049862,120]
[356922562,1743433900314,-500.0,0.00049862,120]
[356922563,1743433900324,-493.45,0.00049862,120]
[356922564,1743433900337,-500.0,0.00049862,120]
[356922565,1743433900347,-302.41046118,0.00049862,120]
[356922566,1743433900358,-500.0,0.00049862,120]
[356922567,1743433900368,-500.0,0.00049862,120]
[356922568,1743433900378,-500.0,0.00049862,120]
[356922569,1743433900387,-17747.14,0.00049862,7]
[356922570,1743433900397,-500.0,0.00049862,120]
[356922571,1743433900407,-500.0,0.00049862,120]
[356922572,1743433900417,-500.0,0.00049862,120]
[356922573,1743433900426,-500.0,0.00049862,120]
[356922574,1743433900436,-500.0,0.00049862,120]
[356922575,1743433900446,-500.0,0.00049862,120]
[356922576,1743433900455,-500.0,0.00049862,120]
[356922577,1743433900464,-500.0,0.00049862,120]
[356922578,1743433900474,-500.0,0.00049862,120]
[356922579,1743433900483,-500.0,0.00049862,120]
[356922580,1743433900493,-835.81,0.00049862,120]
[356922581,1743433900503,-500.0,0.00049862,120]
[356922582,1743433900511,-500.0,0.00049862,120]
[356922583,1743433900520,-1000.0,0.00049863,20]
[356922584,1743433900530,-1000.0,0.00049984,120]
[356922585,1743433900539,-4695.31136208,0.0004999,7]
[356922586,1743433900635,-1638.65078962,0.0004999,7]
[356922587,1743433900647,-2292.245,0.0004999,7]
[356922588,1743433900658,-5772.33062157,0.0004999,7]
[356922589,1743433900668,-500.0,0.0005,5]
[356922590,1743433900678,-1000.0,0.0005,20]
[356922591,1743433900688,-3395.81449938,0.0005,2]
[356922592,1743433900700,-642.93126547,0.0005,2]
[356922593,1743433900842,-500.0,0.00047944,120]
[356922594,1743433900851,-500.0,0.00047944,120]
[356922595,1743433900861,-500.0,0.00048218,120]
[356922596,1743433900871,-623.28749137,0.00048218,120]
[356922597,1743433900880,-500.0,0.00048218,120]
[356922598,1743433900889,-190.88926539,0.00048239,120]
[356922599,1743433900918,-309.11073461,0.00048239,120]
[356922600,1743433900928,-500.0,0.00048492,120]
[356922601,1743433900937,-500.0,0.00048492,120]
[356922602,1743433900946,-500.0,0.00048513,120]
[356922603,1743433900956,-246.78894549,0.00048666,120]
[356922604,1743433900967,-253.21105451,0.00048666,120]
[356922605,1743433900976,-609.36,0.00048766,120]
[356922606,1743433900986,-385.87379549,0.0004894,120]
[356922607,1743433901198,-500.0,0.00047944,120]
[356922608,1743433901208,-500.0,0.00048766,120]
[356922609,1743433901219,-114.12620451,0.0004894,120]
[356922610,1743433901228,-500.0,0.00049214,120]
[356922611,1743433901238,-500.0,0.00049488,120]
[356922612,1743433901248,-500.0,0.00049762,120]
[356922613,1743433901258,-2860.97423515,0.0005,2]
[356922614,1743433901267,-500.0,0.00050036,120]
[356922615,1743433901277,-507.46,0.00050036,120]
[356922616,1743433901287,-500.0,0.00050036,120]
[356922617,1743433901297,-566.31,0.00050036,120]
[356922618,1743433901308,-903.86,0.00050036,120]
[356922619,1743433901318,-567.44,0.00050036,120]
[356922620,1743433901328,-500.0,0.00050036,120]
[356922621,1743433901337,-500.0,0.00050036,120]
[356922622,1743433901347,-500.0,0.00050036,120]
[356922623,1743433901356,-500.0,0.00050036,120]
[356922624,1743433901366,-500.0,0.00050036,120]
[356922625,1743433901376,-500.0,0.00050036,120]
[356922626,1743433901385,-500.0,0.00050036,120]
[356922627,1743433901395,-500.0,0.00050036,120]
[356922628,1743433901405,-660.31,0.00050036,120]
[356922629,1743433901414,-500.0,0.00050036,120]
[356922630,1743433901423,-500.0,0.00050036,120]
[356922631,1743433901433,-500.0,0.00050036,120]
[356922632,1743433901442,-500.0,0.00050036,120]
[356922633,1743433901452,-258.55383997,0.0005008,30]
[356922634,1743433901461,-246.66134081,0.0005008,30]
[356922635,1743433901471,-150.0,0.0005008,30]
[356922636,1743433901480,-150.0,0.0005008,30]
[356922637,1743433901490,-827.0109313,0.0005008,30]
[356922638,1743433901499,-172.45550547,0.0005008,30]
[356922639,1743433901508,-500.0,0.00050135,120]
[356922640,1743433901517,-500.0,0.00050135,120]
[356922641,1743433901526,-948.967504,0.00050135,120]
[356922642,1743433901535,-160.990437,0.00050135,120]
[356922643,1743433901546,-529.2,0.00050135,120]
[356922644,1743433901558,-500.0,0.00050135,120]
[356922645,1743433901568,-797.5,0.00050135,120]
[356922646,1743433901577,-500.0,0.00050135,120]
[356922647,1743433901587,-335.77448745,0.00050135,120]
[356922648,1743433901597,-693.83,0.00050135,120]
[356922649,1743433901607,-526.71,0.00050135,120]
[356922650,1743433901616,-1569.73,0.00050135,120]
[356922651,1743433901626,-500.0,0.00050135,100]
[356922652,1743433901635,-500.0,0.00050135,120]
[356922653,1743433901645,-500.0,0.00050135,120]
[356922654,1743433901655,-1468.67,0.00050135,120]
[356922655,1743433901665,-500.0,0.00050135,120]
[356922656,1743433901675,-512.0129999,0.00050135,120]
[356922657,1743433901685,-515.11251103,0.00050135,120]
[356922658,1743433901695,-500.0,0.00050135,120]
[356922659,1743433901705,-770.37,0.00050135,120]
[356922660,1743433901715,-500.0,0.00050135,120]
[356922661,1743433901725,-594.94,0.00050135,120]
[356922662,1743433901735,-467.82,0.00050135,120]
[356922663,1743433901745,-500.0,0.00050135,120]
[356922664,1743433901755,-500.0,0.00050136,120]
[356922665,1743433901764,-602.1,0.00050136,120]
[356922666,1743433901774,-500.0,0.00050136,120]
[356922667,1743433901783,-500.0,0.00050136,120]
[356922668,1743433901793,-151.7,0.00050136,120]
[356922669,1743433901803,-500.0,0.00050136,120]
[356922670,1743433901815,-232.45,0.00050136,120]
[356922671,1743433901825,-564.05,0.00050136,120]
[356922672,1743433901835,-500.0,0.00050136,120]
[356922673,1743433901845,-500.0,0.00050136,120]
[356922674,1743433901855,-500.0,0.00050136,120]
[356922675,1743433901864,-500.0,0.00050136,30]
[356922676,1743433901874,-500.0,0.00050136,120]
[356922677,1743433901883,-500.0,0.00050136,120]
[356922678,1743433901893,-611.48608234,0.00050136,120]
[356922679,1743433901904,-500.0,0.00050136,120]
[356922680,1743433901914,-500.0,0.00050136,120]
[356922681,1743433901924,-500.0,0.00050136,120]
[356922682,1743433901934,-500.0,0.00050136,120]
[356922683,1743433901944,-500.0,0.00050136,120]
[356922684,1743433901954,-500.0,0.00050136,120]
[356922685,1743433901964,-421.6737299,0.00050136,120]
[356922686,1743433901974,-500.0,0.00050136,120]
[356922687,1743433901984,-500.0,0.00050136,120]
[356922688,1743433901993,-500.0,0.00050136,120]
[356922689,1743433902003,-500.0,0.00050136,120]
[356922690,1743433902013,-500.0,0.00050136,120]
[356922691,1743433902022,-500.0,0.00050136,120]
[356922692,1743433902031,-500.0,0.00050136,120]
[356922693,1743433902044,-500.0,0.00050136,120]
[356922694,1743433902053,-328.5,0.00050136,120]
[356922695,1743433902064,-500.0,0.00050136,120]
[356922696,1743433902074,-500.0,0.00050136,120]
[356922697,1743433902085,-500.0,0.00050136,120]
[356922698,1743433902095,-500.0,0.00050136,120]
[356922699,1743433902105,-500.0,0.00050136,120]
[356922700,1743433902115,-367.86051642,0.00050136,120]
[356922701,1743433902127,-500.0,0.00050136,120]
[356922702,1743433902138,-633.86923912,0.00050136,120]
[356922703,1743433902147,-500.0,0.00050136,120]
[356922704,1743433902156,-500.0,0.00050136,120]
[356922705,1743433902165,-745.34,0.00050136,120]
[356922706,1743433902175,-500.0,0.00050136,120]
[356922707,1743433902184,-500.0,0.00050136,120]
[356922708,1743433902193,-750.0,0.00050136,120]
[356922709,1743433902202,-500.0,0.00050136,120]
[356922710,1743433902214,-500.0,0.00050136,120]
[356922711,1743433902224,-500.0,0.00050136,120]
[356922712,1743433902235,-500.0,0.00050136,120]
[356922713,1743433902246,-500.0,0.00050136,120]
[356922714,1743433902256,-500.0,0.00050136,120]
[356922715,1743433902268,-500.0,0.00050136,120]
[356922716,1743433902278,-500.0,0.00050136,120]
[356922717,1743433902287,-500.0,0.00050136,120]
[356922718,1743433902295,-500.0,0.00050136,120]
[356922719,1743433902306,-194.55,0.00050136,120]
[356922720,1743433902316,-500.0,0.00050136,120]
[356922721,1743433902325,-449.46290486,0.00050136,120]
[356922722,1743433902336,-500.0,0.00050136,120]
[356922723,1743433902346,-500.0,0.00050136,120]
[356922724,1743433902356,-525.56291418,0.00050136,120]
[356922725,1743433902366,-500.0,0.00050136,120]
[356922726,1743433902377,-500.0,0.00050136,120]
[356922727,1743433902386,-591.1,0.00050136,120]
[356922728,1743433902396,-518.04,0.00050136,120]
[356922729,1743433902406,-561.69654489,0.00050136,120]
[356922730,1743433902415,-847.49,0.00050136,120]
[356922731,1743433902424,-500.0,0.00050136,120]
[356922732,1743433902435,-500.0,0.00050136,120]
[356922733,1743433902445,-853.55,0.00050136,120]
[356922734,1743433902455,-500.0,0.00050136,120]
[356922735,1743433902464,-500.0,0.00050136,120]
[356922736,1743433902474,-500.0,0.00050136,120]
[356922737,1743433902483,-644.47,0.00050136,120]
[356922738,1743433902493,-346.68639358,0.00050136,120]
[356922739,1743433902502,-500.0,0.00050136,120]
[356922740,1743433902511,-500.0,0.00050136,120]
[356922741,1743433902521,-500.0,0.00050136,120]
[356922742,1743433902530,-12317.97553995,0.00050136,7]
[356922743,1743433902555,-500.0,0.00047943,120]
[356922744,1743433902565,-84.48911738,0.00048218,120]
[356922745,1743433902576,-415.51088262,0.00048218,120]
[356922746,1743433902587,-500.0,0.0004904,120]
[356922747,1743433902597,-5429.16446005,0.00050136,7]
[356922748,1743433902607,-500.0,0.00050136,120]
[356922749,1743433902617,-500.0,0.00050136,120]
[356922750,1743433902627,-500.0,0.00050136,120]
[356922751,1743433902636,-500.0,0.00050136,120]
[356922752,1743433902647,-362.18685941,0.00050136,120]
[356922753,1743433902656,-357.35,0.00050136,120]
[356922754,1743433902666,-500.0,0.00050136,120]
[356922755,1743433902675,-500.0,0.00050136,120]
[356922756,1743433902685,-500.0,0.00050136,120]
[356922757,1743433902695,-500.0,0.00050136,120]
[356922758,1743433902704,-835.81,0.00050136,120]
[356922759,1743433902714,-171.65916704,0.00050136,120]
[356922760,1743433902724,-500.0,0.00050136,120]
[356922761,1743433902733,-1000.0,0.00050137,20]
[356922762,1743433902742,-20000.0,0.00050155,7]
[356922763,1743433902832,-20000.0,0.00050255,7]
[356922764,1743433902842,-978.6868,0.00050255,2]
[356922765,1743433902852,-1000.0,0.00050274,20]
[356922766,1743433902862,-1413.0,0.00050277,7]
[356922767,1743433902871,-1000.0,0.00050277,2]
[356922768,1743433902881,-3432.2263,0.00050277,2]
[356922769,1743433902891,-286.8685,0.00050277,2]
[356922770,1743433902901,-390.5261,0.00050298,2]
[356922771,1743433902911,-500.0,0.0005031,120]
[356922772,1743433902921,-507.46,0.0005031,120]
[356922773,1743433902931,-500.0,0.0005031,120]
[356922774,1743433902941,-566.31,0.0005031,120]
[356922775,1743433902950,-903.86,0.0005031,120]
[356922776,1743433902960,-567.44,0.0005031,120]
[356922777,1743433902970,-109.48335673,0.0005031,120]
[356922778,1743433902982,-390.51664327,0.0005031,120]
[356922779,1743433902992,-500.0,0.0005031,120]
[356922780,1743433903002,-363.93669273,0.0005031,120]
[356922781,1743433903014,-136.06330727,0.0005031,120]
[356922782,1743433903023,-120.44578848,0.0005031,120]
[356922783,1743433903035,-379.55421152,0.0005031,120]
[356922784,1743433903047,-500.0,0.0005031,120]
[356922785,1743433903059,-500.0,0.0005031,120]
[356922786,1743433903069,-500.0,0.0005031,120]
[356922787,1743433903080,-500.0,0.0005031,120]
[356922788,1743433903090,-660.31,0.0005031,120]
[356922789,1743433903101,-500.0,0.0005031,120]
[356922790,1743433903111,-500.0,0.0005031,120]
[356922791,1743433903122,-500.0,0.0005031,120]
[356922792,1743433903132,-624.96,0.0005031,120]
[356922793,1743433903142,-20000.0,0.00050355,7]
[356922794,1743433903151,-20000.0,0.00050377,7]
[356922795,1743433903161,-20000.0,0.00050398,7]
[356922796,1743433903170,-20000.0,0.000504,7]
[356922797,1743433903179,-20000.0,0.00050401,7]
[356922798,1743433903190,-500.0,0.00050401,120]
[356922799,1743433903199,-500.0,0.00050401,120]
[356922800,1743433903209,-20000.0,0.00050402,7]
[356922801,1743433903219,-20000.0,0.00050403,7]
[356922802,1743433903229,-500.0,0.00050409,120]
[356922803,1743433903239,-500.0,0.00050409,120]
[356922804,1743433903248,-948.967504,0.00050409,120]
[356922805,1743433903258,-529.2,0.00050409,120]
[356922806,1743433903267,-500.0,0.00050409,120]
[356922807,1743433903277,-797.5,0.00050409,120]
[356922808,1743433903287,-500.0,0.00050409,120]
[356922809,1743433903297,-693.83,0.00050409,120]
[356922810,1743433903309,-526.71,0.00050409,120]
[356922811,1743433903319,-1569.73,0.00050409,120]
[356922812,1743433903328,-500.0,0.00050409,100]
[356922813,1743433903338,-500.0,0.00050409,120]
[356922814,1743433903347,-500.0,0.00050409,120]
[356922815,1743433903357,-1468.67,0.00050409,120]
[356922816,1743433903367,-500.0,0.00050409,120]
[356922817,1743433903377,-168.69,0.00050409,120]
[356922818,1743433903387,-770.37,0.00050409,120]
[356922819,1743433903396,-500.0,0.00050409,120]
[356922820,1743433903406,-594.94,0.00050409,120]
[356922821,1743433903415,-173.416305,0.00050409,120]
[356922822,1743433903425,-500.0,0.00050409,120]
[356922823,1743433903436,-500.0,0.0005041,120]
[356922824,1743433903446,-500.0,0.0005041,120]
[356922825,1743433903455,-500.0,0.0005041,120]
[356922826,1743433903465,-500.0,0.0005041,120]
[356922827,1743433903474,-177.84816504,0.0005041,120]
[356922828,1743433903484,-401.9,0.0005041,120]
[356922829,1743433903493,-500.0,0.0005041,120]
[356922830,1743433903503,-348.01215305,0.0005041,120]
[356922831,1743433903514,-500.0,0.0005041,120]
[356922832,1743433903524,-500.0,0.0005041,120]
[356922833,1743433903533,-240.1416859,0.0005041,120]
[356922834,1743433903543,-500.0,0.0005041,120]
[356922835,1743433903552,-500.0,0.0005041,120]
[356922836,1743433903563,-500.0,0.0005041,120]
[356922837,1743433903571,-500.0,0.0005041,120]
[356922838,1743433903580,-500.0,0.0005041,120]
[356922839,1743433903590,-500.0,0.0005041,120]
[356922840,1743433903599,-500.0,0.0005041,120]
[356922841,1743433903609,-540.64797676,0.0005041,120]
[356922842,1743433903618,-617.82,0.0005041,120]
[356922843,1743433903628,-500.0,0.0005041,120]
[356922844,1743433903638,-256.14358886,0.0005041,120]
[356922845,1743433903648,-238.74669902,0.0005041,120]
[356922846,1743433903658,-533.40360848,0.0005041,120]
[356922847,1743433903668,-500.0,0.0005041,120]
[356922848,1743433903678,-500.0,0.0005041,120]
[356922849,1743433903688,-745.34,0.0005041,120]
[356922850,1743433903698,-313.76,0.0005041,120]
[356922851,1743433903708,-500.0,0.0005041,120]
[356922852,1743433903718,-625.85321676,0.0005041,120]
[356922853,1743433903727,-500.0,0.0005041,120]
[356922854,1743433903737,-500.0,0.0005041,120]
[356922855,1743433903747,-500.0,0.0005041,120]
[356922856,1743433903756,-500.0,0.0005041,120]
[356922857,1743433903766,-500.0,0.0005041,120]
[356922858,1743433903775,-500.0,0.0005041,120]
[356922859,1743433903786,-500.0,0.0005041,120]
[356922860,1743433903795,-500.0,0.0005041,120]
[356922861,1743433903805,-262.43813308,0.0005041,120]
[356922862,1743433903816,-500.0,0.0005041,120]
[356922863,1743433903827,-500.0,0.0005041,120]
[356922864,1743433903837,-500.0,0.0005041,120]
[356922865,1743433903847,-500.0,0.0005041,120]
[356922866,1743433903857,-182.39851907,0.0005041,120]
[356922867,1743433903867,-286.13301788,0.0005041,120]
[356922868,1743433903877,-847.49,0.0005041,120]
[356922869,1743433903888,-500.0,0.0005041,120]
[356922870,1743433903898,-500.0,0.0005041,120]
[356922871,1743433903908,-853.55,0.0005041,120]
[356922872,1743433903919,-500.0,0.0005041,120]
[356922873,1743433903928,-500.0,0.0005041,120]
[356922874,1743433903938,-500.0,0.0005041,120]
[356922875,1743433903948,-598.95,0.0005041,120]
[356922876,1743433903958,-521.1,0.0005041,120]
[356922877,1743433903967,-547.13327011,0.0005041,120]
[356922878,1743433903977,-17747.14,0.0005041,7]
[356922879,1743433903987,-500.0,0.0005041,120]
[356922880,1743433903997,-500.0,0.0005041,120]
[356922881,1743433904006,-500.0,0.0005041,120]
[356922882,1743433904016,-500.0,0.0005041,120]
[356922883,1743433904026,-500.0,0.0005041,120]
[356922884,1743433904035,-500.0,0.0005041,120]
[356922885,1743433904047,-238.39934004,0.0005041,120]
[356922886,1743433904057,-835.81,0.0005041,120]
[356922887,1743433904071,-500.0,0.0005041,120]
[356922888,1743433904080,-1000.0,0.00050411,20]
[356922889,1743433904090,-562.60743977,0.000505,120]
[356922890,1743433904100,-1000.0,0.00050548,20]
[356922891,1743433904110,-500.0,0.00050584,120]
[356922892,1743433904119,-507.46,0.00050584,120]
[356922893,1743433904131,-500.0,0.00050584,120]
[356922894,1743433904141,-566.31,0.00050584,120]
[356922895,1743433904151,-903.86,0.00050584,120]
[356922896,1743433904161,-567.44,0.00050584,120]
[356922897,1743433904171,-500.0,0.00050584,120]
[356922898,1743433904181,-500.0,0.00050584,120]
[356922899,1743433904190,-500.0,0.00050584,120]
[356922900,1743433904200,-446.57668994,0.00050584,120]
[356922901,1743433904210,-500.0,0.00050584,120]
[356922902,1743433904220,-648.29645139,0.00050584,120]
[356922903,1743433904230,-563.51710934,0.00050584,120]
[356922904,1743433904239,-500.0,0.00050584,120]
[356922905,1743433904249,-660.31,0.00050584,120]
[356922906,1743433904258,-500.0,0.00050584,120]
[356922907,1743433904268,-500.0,0.00050584,120]
[356922908,1743433904279,-249.02,0.00050584,120]
[356922909,1743433904288,-20000.0,0.000506,7]
[356922910,1743433904297,-500.0,0.0005066,2]
[356922911,1743433904383,-500.0,0.0005066,2]
[356922912,1743433904394,-500.0,0.0005066,2]
[356922913,1743433904403,-164.01,0.0005066,2]
[356922914,1743433904414,-500.0,0.00050675,120]
[356922915,1743433904424,-500.0,0.00050675,120]
[356922916,1743433904434,-500.0,0.00050683,120]
[356922917,1743433904443,-948.967504,0.00050683,120]
[356922918,1743433904453,-160.990437,0.00050683,120]
[356922919,1743433904463,-529.2,0.00050683,120]
[356922920,1743433904472,-500.0,0.00050683,120]
[356922921,1743433904483,-797.5,0.00050683,120]
[356922922,1743433904492,-500.0,0.00050683,120]
[356922923,1743433904502,-693.83,0.00050683,120]
[356922924,1743433904511,-526.71,0.00050683,120]
[356922925,1743433904522,-1569.73,0.00050683,120]
[356922926,1743433904531,-500.0,0.00050683,100]
[356922927,1743433904540,-500.0,0.00050683,120]
[356922928,1743433904549,-500.0,0.00050683,120]
[356922929,1743433904560,-1468.67,0.00050683,120]
[356922930,1743433904570,-161.78301708,0.00050683,120]
[356922931,1743433904580,-770.37,0.00050683,120]
[356922932,1743433904590,-500.0,0.00050683,120]
[356922933,1743433904599,-594.94,0.00050683,120]
[356922934,1743433904608,-500.0,0.00050683,120]
[356922935,1743433904618,-384.7,0.00050684,120]
[356922936,1743433904630,-500.0,0.00050684,120]
[356922937,1743433904639,-277.45362284,0.00050684,120]
[356922938,1743433904650,-500.0,0.00050684,120]
[356922939,1743433904660,-500.0,0.00050684,120]
[356922940,1743433904670,-500.0,0.00050684,120]
[356922941,1743433904681,-500.0,0.00050684,120]
[356922942,1743433904691,-269.0862048,0.00050684,120]
[356922943,1743433904701,-500.0,0.00050684,120]
[356922944,1743433904711,-253.62683037,0.00050684,120]
[356922945,1743433904721,-616.12840456,0.00050684,120]
[356922946,1743433904730,-557.90548991,0.00050684,120]
[356922947,1743433904739,-500.0,0.00050684,120]
[356922948,1743433904749,-398.78534448,0.00050684,120]
[356922949,1743433904758,-500.0,0.00050684,120]
[356922950,1743433904767,-500.0,0.00050684,120]
[356922951,1743433904777,-745.34,0.00050684,120]
[356922952,1743433904786,-500.0,0.00050684,120]
[356922953,1743433904795,-500.0,0.00050684,120]
[356922954,1743433904805,-500.0,0.00050684,120]
[356922955,1743433904817,-500.0,0.00050684,120]
[356922956,1743433904827,-500.0,0.00050684,120]
[356922957,1743433904836,-500.0,0.00050684,120]
[356922958,1743433904846,-531.4665511,0.00050684,120]
[356922959,1743433904855,-500.0,0.00050684,120]
[356922960,1743433904864,-500.0,0.00050684,120]
[356922961,1743433904874,-500.0,0.00050684,120]
[356922962,1743433904883,-500.0,0.00050684,120]
[356922963,1743433904893,-310.07965981,0.00050684,120]
[356922964,1743433904902,-500.0,0.00050684,120]
[356922965,1743433904912,-847.49,0.00050684,120]
[356922966,1743433904922,-342.3,0.00050684,120]
[356922967,1743433904931,-500.0,0.00050684,120]
[356922968,1743433904941,-853.55,0.00050684,120]
[356922969,1743433904951,-552.1,0.00050684,120]
[356922970,1743433904961,-500.0,0.00050684,120]
[356922971,1743433904971,-392.15,0.00050684,120]
[356922972,1743433904982,-17747.14,0.00050684,7]
[356922973,1743433904991,-500.0,0.00050684,120]
[356922974,1743433905001,-500.0,0.00050684,120]
[356922975,1743433905011,-500.0,0.00050684,120]
[356922976,1743433905021,-500.0,0.00050684,120]
[356922977,1743433905032,-500.0,0.00050684,120]
[356922978,1743433905043,-500.0,0.00050684,120]
[356922979,1743433905056,-835.81,0.00050684,120]
[356922980,1743433905069,-500.0,0.00050684,120]
[356922981,1743433905079,-1000.0,0.00050685,20]
[356922982,1743433905090,-480.77834817,0.00050768,15]
[356922983,1743433905100,-210.0,0.0005077,30]
[356922984,1743433905110,-210.0,0.0005077,30]
[356922985,1743433905119,-20000.0,0.000508,7]
[356922986,1743433905130,-232.81226,0.000508,120]
[356922987,1743433905140,-1000.0,0.00050822,20]
[356922988,1743433905151,-500.0,0.00050858,120]
[356922989,1743433905160,-507.46,0.00050858,120]
[356922990,1743433905171,-500.0,0.00050858,120]
[356922991,1743433905181,-566.31,0.00050858,120]
[356922992,1743433905191,-903.86,0.00050858,120]
[356922993,1743433905200,-567.44,0.00050858,120]
[356922994,1743433905211,-500.0,0.00050858,120]
[356922995,1743433905220,-500.0,0.00050858,120]
[356922996,1743433905230,-500.0,0.00050858,120]
[356922997,1743433905239,-500.0,0.00050858,120]
[356922998,1743433905249,-500.0,0.00050858,120]
[356922999,1743433905260,-660.31,0.00050858,120]
[356923000,1743433905271,-500.0,0.00050858,120]
[356923001,1743433905282,-500.0,0.00050934,2]
[356923002,1743433905293,-500.0,0.00050934,2]
[356923003,1743433905303,-903.68410319,0.00050934,2]
[356923004,1743433905315,-500.0,0.00050949,120]
[356923005,1743433905325,-500.0,0.00050949,120]